[Event "FIDE Women World Blitz 2021"]
[Site "Warsaw"]
[Date "2021.12.29"]
[Round "8.3"]
[White "Katkov, Michelle"]
[Black "Ovod, Evgenija"]
[Result "0-1"]
[ECO "C54"]
[WhiteElo "1651"]
[BlackElo "2366"]
[Annotator "NA"]
[PlyCount "96"]
[EventDate "2021.12.29"]
[EventType "swiss"]
[EventCountry "POL"]
[Tiebreak "Cut1 Buchholz"]
[SourceTitle "playchess.com"]
[Source "ChessBase"]
[SourceQuality "1"]
[TimeControl "180+2"]

1. e4 {[%emt 0:00:01]} e5 {[%emt 0:00:00]} 2. Nf3 {[%emt 0:00:02]} Nc6 {
[%emt 0:00:00]} 3. Bc4 {[%emt 0:00:01]} Bc5 {[%emt 0:00:01]} 4. c3 {[%emt 0:00:
02]} Nf6 {[%emt 0:00:00]} 5. d3 {[%emt 0:00:01]} a6 {[%emt 0:00:02]} 6. Nbd2 {
[%emt 0:00:03]} Ba7 {[%emt 0:00:01]} 7. O-O {[%emt 0:00:05]} O-O {[%emt 0:00:
01]} 8. Re1 {[%emt 0:00:04]} Ng4 {[%emt 0:00:16]} 9. Re2 {[%emt 0:00:02]} Kh8 {
[%emt 0:00:05]} 10. h3 {[%emt 0:00:01]} Nh6 {[%emt 0:00:04]} 11. Nf1 {[%emt 0:
00:18]} d6 {[%emt 0:00:20]} 12. Bxh6 {[%emt 0:00:11]} gxh6 {[%emt 0:00:01]} 13.
Ng3 {[%emt 0:00:07]} Na5 {[%emt 0:00:01]} 14. Bb3 {[%emt 0:00:12]} Nxb3 {
[%emt 0:00:02]} 15. axb3 {[%emt 0:00:08]} f5 {[%emt 0:00:02]} 16. exf5 {
[%emt 0:00:06]} Bxf5 {[%emt 0:00:01]} 17. Nxf5 {[%emt 0:00:02]} Rxf5 {[%emt 0:
00:00]} 18. Re4 {[%emt 0:00:07]} Qf6 {[%emt 0:00:04]} 19. Qe2 {[%emt 0:00:17]}
Rg8 {[%emt 0:00:29]} 20. Kh1 {[%emt 0:00:04]} h5 {[%emt 0:00:25]} 21. d4 {
[%emt 0:00:10]} exd4 {[%emt 0:00:23]} 22. cxd4 {[%emt 0:00:04]} d5 {[%emt 0:00:
12]} 23. Re7 {[%emt 0:00:16]} Bxd4 {[%emt 0:00:25]} 24. Rxc7 {[%emt 0:00:21]}
Bxb2 {[%emt 0:00:18]} 25. Re1 {[%emt 0:00:08]} Bc3 {[%emt 0:00:09]} 26. Rc1 {
[%emt 0:00:01]} d4 {[%emt 0:00:06]} 27. Rxb7 {[%emt 0:00:13]} a5 {[%emt 0:00:
13]} 28. Ra7 {[%emt 0:00:21]} Qh6 {[%emt 0:00:13]} 29. Rg1 {[%emt 0:00:06]} Qf6
{[%emt 0:00:03]} 30. Ra6 {[%emt 0:00:06]} Qg7 {[%emt 0:00:02]} 31. Qe4 {
[%emt 0:00:05]} Qf7 {[%emt 0:00:01]} 32. Re6 {[%emt 0:00:06]} Rf6 {[%emt 0:00:
02]} 33. Re7 {[%emt 0:00:01]} Qg6 {[%emt 0:00:01]} 34. Qb7 {[%emt 0:00:07]} Rg7
{[%emt 0:00:02]} 35. Qc8+ {[%emt 0:00:06]} Rg8 {[%emt 0:00:01]} 36. Qc7 {
[%emt 0:00:03]} Rxf3 {[%emt 0:00:03]} 37. Rxh7+ {[%emt 0:00:05]} Qxh7 {[%emt 0:
00:01]} 38. Qe5+ {[%emt 0:00:00]} Rg7 {[%emt 0:00:03]} 39. Qe8+ {[%emt 0:00:03]
} Rg8 {[%emt 0:00:02]} 40. Qe5+ {[%emt 0:00:01]} Rg7 {[%emt 0:00:01]} 41. gxf3
{[%emt 0:00:03]} Qh6 {[%emt 0:00:03]} 42. Qe8+ {[%emt 0:00:02]} Kh7 {[%emt 0:
00:01]} 43. Qe4+ {[%emt 0:00:01]} Kh8 {[%emt 0:00:01]} 44. Qe8+ {[%emt 0:00:00]
} Kh7 {[%emt 0:00:01]} 45. Qe4+ {[%emt 0:00:01]} Kh8 {[%emt 0:00:01]} 46. Qe8+
Kh7 {[%emt 0:00:01]} 47. Qe4+ {[%emt 0:00:02]} Rg6 {[%emt 0:00:01]} 48. Rd1 {
[%emt 0:00:08]} Qg5 {[%emt 0:00:02]} 0-1

[Event "FIDE Women World Blitz 2021"]
[Site "Warsaw"]
[Date "2021.12.29"]
[Round "8.4"]
[White "Zhukova, Natalia"]
[Black "Kamalidenova, Meruert"]
[Result "0-1"]
[ECO "E76"]
[WhiteElo "2331"]
[BlackElo "2339"]
[Annotator "NA"]
[PlyCount "78"]
[EventDate "2021.12.29"]
[EventType "swiss"]
[EventCountry "POL"]
[Tiebreak "Cut1 Buchholz"]
[SourceTitle "playchess.com"]
[Source "ChessBase"]
[SourceQuality "1"]
[TimeControl "180+2"]

1. c4 {[%emt 0:00:01]} Nf6 {[%emt 0:00:03]} 2. Nc3 {[%emt 0:00:01]} g6 {
[%emt 0:00:01]} 3. e4 {[%emt 0:00:02]} d6 {[%emt 0:00:02]} 4. d4 {[%emt 0:00:
02]} Bg7 {[%emt 0:00:01]} 5. f4 {[%emt 0:00:07]} O-O {[%emt 0:00:03]} 6. Nf3 {
[%emt 0:00:01]} c5 {[%emt 0:00:01]} 7. d5 {[%emt 0:00:01]} e6 {[%emt 0:00:02]}
8. dxe6 {[%emt 0:00:01]} Bxe6 {[%emt 0:00:06]} 9. Bd3 {[%emt 0:00:02]} Nc6 {
[%emt 0:00:07]} 10. f5 {[%emt 0:00:03]} Bd7 {[%emt 0:00:14]} 11. O-O {[%emt 0:
00:02]} Ng4 {[%emt 0:00:16]} 12. Bg5 {[%emt 0:00:04]} f6 {[%emt 0:00:06]} 13.
Bf4 {[%emt 0:00:08]} Nge5 {[%emt 0:00:03]} 14. Be2 {[%emt 0:00:13]} gxf5 {
[%emt 0:00:06]} 15. exf5 {[%emt 0:00:54]} Bxf5 {[%emt 0:00:07]} 16. Nh4 {
[%emt 0:00:17]} Be6 {[%emt 0:00:19]} 17. Ne4 {[%emt 0:00:43]} Nd4 {[%emt 0:00:
10]} 18. b3 {[%emt 0:00:08]} b6 {[%emt 0:00:24]} 19. Be3 {[%emt 0:00:03]} d5 {
[%emt 0:00:15]} 20. cxd5 {[%emt 0:00:15]} Qxd5 {[%emt 0:00:07]} 21. Ng3 {
[%emt 0:00:05]} Ng6 {[%emt 0:00:13]} 22. Nhf5 {[%emt 0:00:07]} Nxf5 {[%emt 0:
00:04]} 23. Qxd5 {[%emt 0:00:04]} Bxd5 {[%emt 0:00:02]} 24. Nxf5 {[%emt 0:00:
01]} Rfe8 {[%emt 0:00:03]} 25. Bb5 {[%emt 0:00:08]} Re5 {[%emt 0:00:06]} 26.
Bd2 {[%emt 0:00:08]} a6 {[%emt 0:00:09]} 27. Bc4 {[%emt 0:00:06]} Bxc4 {
[%emt 0:00:03]} 28. bxc4 {[%emt 0:00:01]} Re2 {[%emt 0:00:05]} 29. Bc3 {
[%emt 0:00:03]} Ne5 {[%emt 0:00:04]} 30. Nxg7 {[%emt 0:00:05]} Kxg7 {[%emt 0:
00:01]} 31. Bxe5 {[%emt 0:00:03]} Rxe5 {[%emt 0:00:04]} 32. Rad1 {[%emt 0:00:
00]} Ra7 {[%emt 0:00:09]} 33. Rd6 {[%emt 0:00:02]} b5 {[%emt 0:00:01]} 34.
Rfxf6 {[%emt 0:00:04]} bxc4 {[%emt 0:00:03]} 35. Rxa6 {[%emt 0:00:01]} Rxa6 {
[%emt 0:00:09]} 36. Rxa6 {[%emt 0:00:01]} c3 {[%emt 0:00:01]} 37. Ra3 {[%emt 0:
00:06]} c2 {[%emt 0:00:01]} 38. Rc3 {[%emt 0:00:01]} Re1+ {[%emt 0:00:01]} 39.
Kf2 {[%emt 0:00:01]} c1=Q {[%emt 0:00:02]} 0-1

[Event "FIDE Women World Blitz 2021"]
[Site "Warsaw"]
[Date "2021.12.29"]
[Round "8.4"]
[White "Beydullayeva, Govhar"]
[Black "Dylag, Emilia"]
[Result "1-0"]
[ECO "E05"]
[WhiteElo "2278"]
[BlackElo "1863"]
[Annotator "NA"]
[PlyCount "87"]
[EventDate "2021.12.29"]
[EventType "swiss"]
[EventCountry "POL"]
[Tiebreak "Cut1 Buchholz"]
[SourceTitle "playchess.com"]
[Source "ChessBase"]
[SourceQuality "1"]
[TimeControl "180+2"]

1. Nf3 {[%emt 0:00:01]} d5 {[%emt 0:00:01]} 2. g3 {[%emt 0:00:00]} Nf6 {
[%emt 0:00:02]} 3. Bg2 {[%emt 0:00:00]} e6 {[%emt 0:00:01]} 4. O-O {[%emt 0:00:
04]} Be7 5. c4 O-O {[%emt 0:00:04]} 6. d4 {[%emt 0:00:00]} dxc4 {[%emt 0:00:02]
} 7. Qc2 {[%emt 0:00:01]} b5 {[%emt 0:00:01]} 8. a4 {[%emt 0:00:02]} b4 {
[%emt 0:00:01]} 9. Nfd2 {[%emt 0:00:01]} c6 {[%emt 0:00:02]} 10. Nxc4 {[%emt 0:
00:01]} Qxd4 {[%emt 0:00:02]} 11. Rd1 {[%emt 0:00:06]} Qc5 {[%emt 0:00:17]} 12.
Be3 {[%emt 0:00:01]} Qh5 {[%emt 0:00:01]} 13. Nbd2 {[%emt 0:00:01]} Ng4 {
[%emt 0:00:22]} 14. Nf3 {[%emt 0:00:01]} Nxe3 {[%emt 0:00:27]} 15. Nxe3 {
[%emt 0:00:02]} a5 {[%emt 0:00:12]} 16. Nc4 {[%emt 0:00:17]} Nd7 {[%emt 0:00:
41]} 17. Nd4 {[%emt 0:00:16]} Bf6 {[%emt 0:00:28]} 18. Nxc6 {[%emt 0:00:10]}
Nc5 {[%emt 0:00:14]} 19. Ne7+ {[%emt 0:00:34]} Bxe7 {[%emt 0:00:07]} 20. Bxa8 {
[%emt 0:00:01]} b3 {[%emt 0:00:04]} 21. Qc3 {[%emt 0:00:13]} Ba6 {[%emt 0:00:
09]} 22. Bf3 {[%emt 0:00:04]} Qg6 {[%emt 0:00:07]} 23. Nxa5 {[%emt 0:00:11]}
Rc8 {[%emt 0:00:11]} 24. Nc6 {[%emt 0:00:05]} Bf8 {[%emt 0:00:05]} 25. a5 {
[%emt 0:00:28]} h6 {[%emt 0:00:01]} 26. Qd4 {[%emt 0:00:17]} e5 {[%emt 0:00:05]
} 27. Nxe5 {[%emt 0:00:03]} Qf6 {[%emt 0:00:01]} 28. Rac1 {[%emt 0:00:10]} Bb5
{[%emt 0:00:04]} 29. Bd5 {[%emt 0:00:23]} Rc7 {[%emt 0:00:04]} 30. Qf4 {
[%emt 0:00:10]} Qxf4 {[%emt 0:00:02]} 31. gxf4 {[%emt 0:00:01]} Bxe2 {[%emt 0:
00:01]} 32. Re1 {[%emt 0:00:03]} Bh5 {[%emt 0:00:01]} 33. Bxb3 {[%emt 0:00:02]}
Ra7 {[%emt 0:00:02]} 34. Bc4 {[%emt 0:00:05]} Ra8 {[%emt 0:00:04]} 35. b4 {
[%emt 0:00:01]} Nb7 {[%emt 0:00:02]} 36. Nc6 {[%emt 0:00:01]} Nd6 {[%emt 0:00:
02]} 37. Bd5 {[%emt 0:00:02]} Rc8 {[%emt 0:00:02]} 38. Ne5 {[%emt 0:00:05]} Rb8
{[%emt 0:00:03]} 39. a6 {[%emt 0:00:03]} Rxb4 {[%emt 0:00:01]} 40. a7 {[%emt 0:
00:01]} Ra4 {[%emt 0:00:02]} 41. a8=Q {[%emt 0:00:02]} Rxa8 {[%emt 0:00:01]}
42. Bxa8 {[%emt 0:00:01]} f6 {[%emt 0:00:02]} 43. Bd5+ {[%emt 0:00:01]} Kh7 {
[%emt 0:00:01]} 44. Nd7 {[%emt 0:00:04]} 1-0

[Event "FIDE Women World Blitz 2021"]
[Site "Warsaw"]
[Date "2021.12.29"]
[Round "8.5"]
[White "Koneru, Humpy"]
[Black "Babiy, Olga"]
[Result "1-0"]
[ECO "D27"]
[WhiteElo "2586"]
[BlackElo "2179"]
[Annotator "ChessBase"]
[PlyCount "53"]
[EventDate "2021.12.29"]
[EventType "swiss"]
[EventCountry "POL"]
[Tiebreak "Cut1 Buchholz"]
[SourceTitle "playchess.com"]
[Source "ChessBase"]
[SourceQuality "1"]
[TimeControl "180+2"]

1. d4 {[%emt 0:00:01]} d5 {[%emt 0:00:00]} 2. c4 {[%emt 0:00:02]} dxc4 {
[%emt 0:00:01]} 3. Nf3 {[%emt 0:00:02]} Nf6 {[%emt 0:00:01]} 4. e3 {[%emt 0:00:
02]} e6 {[%emt 0:00:00]} 5. Bxc4 {[%emt 0:00:02]} a6 {[%emt 0:00:01]} 6. O-O {
[%emt 0:00:05]} c5 {[%emt 0:00:01]} 7. b3 {[%emt 0:00:12]} b6 {[%emt 0:00:01]}
8. Bb2 {[%emt 0:00:02]} Bb7 {[%emt 0:00:06]} 9. Qe2 {[%emt 0:00:09]} Nbd7 {
[%emt 0:00:01]} 10. Rd1 {[%emt 0:00:07]} Be7 {[%emt 0:00:03]} 11. Nbd2 {
[%emt 0:00:20]} Qb8 {[%emt 0:00:05]} 12. h3 {[%emt 0:00:09]} O-O {[%emt 0:00:
10]} 13. Rac1 {[%emt 0:00:02]} cxd4 {[%emt 0:00:06]} 14. Nxd4 {[%emt 0:00:05]}
Ne5 {[%emt 0:00:08]} 15. a4 {[%emt 0:00:22]} Nxc4 {[%emt 0:00:05]} 16. Nxc4 {
[%emt 0:00:03]} Bd5 {[%emt 0:00:05]} 17. f3 {[%emt 0:00:19]} Bc5 {[%emt 0:00:
30]} 18. Nd2 {[%emt 0:00:22]} Nh5 {[%emt 0:00:19]} 19. f4 {[%emt 0:00:10]} Nf6
{[%emt 0:00:11]} 20. N4f3 {[%emt 0:00:12]} Ne4 {[%emt 0:00:05]} 21. Nxe4 {
[%emt 0:00:10]} Bxe4 {[%emt 0:00:02]} 22. Ne5 {[%emt 0:00:04]} Qb7 {[%emt 0:00:
35]} 23. Rd7 {[%emt 0:00:11]} Qb8 {[%emt 0:00:01]} 24. b4 {[%emt 0:00:24]} Bd6
{[%emt 0:00:24]} 25. Nc6 {[%emt 0:00:03]} Bxc6 {[%emt 0:00:04]} 26. Rxc6 {
[%emt 0:00:01]} Bxb4 {[%emt 0:00:10]} 27. Bxg7 {[%emt 0:00:03]} 1-0

[Event "FIDE Women World Blitz 2021"]
[Site "Warsaw"]
[Date "2021.12.29"]
[Round "8.5"]
[White "Kazarian, Anna-Maja"]
[Black "Smietanska, Wiktoria"]
[Result "1-0"]
[ECO "B90"]
[WhiteElo "2138"]
[BlackElo "1765"]
[Annotator "NA"]
[PlyCount "71"]
[EventDate "2021.12.29"]
[EventType "swiss"]
[EventCountry "POL"]
[Tiebreak "Cut1 Buchholz"]
[SourceTitle "playchess.com"]
[Source "ChessBase"]
[SourceQuality "1"]
[TimeControl "180+2"]

1. e4 {[%emt 0:00:01]} c5 {[%emt 0:00:01]} 2. Nf3 {[%emt 0:00:01]} d6 {[%emt 0:
00:00]} 3. d4 {[%emt 0:00:01]} cxd4 {[%emt 0:00:01]} 4. Nxd4 {[%emt 0:00:01]}
Nf6 {[%emt 0:00:01]} 5. Nc3 {[%emt 0:00:01]} a6 {[%emt 0:00:01]} 6. Be3 {
[%emt 0:00:02]} e5 {[%emt 0:00:01]} 7. Nb3 {[%emt 0:00:01]} Be6 {[%emt 0:00:01]
} 8. Qd2 {[%emt 0:00:01]} Nbd7 {[%emt 0:00:01]} 9. O-O-O {[%emt 0:00:02]} b5 {
[%emt 0:00:01]} 10. f4 {[%emt 0:00:26]} Be7 {[%emt 0:00:14]} 11. f5 {[%emt 0:
00:05]} Bc4 {[%emt 0:00:02]} 12. Kb1 {[%emt 0:00:01]} Bxf1 {[%emt 0:00:13]} 13.
Rhxf1 {[%emt 0:00:05]} Nb6 {[%emt 0:00:16]} 14. Qe2 {[%emt 0:00:14]} Nc4 {
[%emt 0:00:11]} 15. Bc1 {[%emt 0:00:01]} Qb6 {[%emt 0:00:19]} 16. g4 {[%emt 0:
00:04]} Qc6 {[%emt 0:00:40]} 17. g5 {[%emt 0:00:08]} Nd7 {[%emt 0:00:04]} 18.
Nd5 {[%emt 0:00:11]} a5 {[%emt 0:00:09]} 19. Nxe7 {[%emt 0:00:15]} Kxe7 {
[%emt 0:00:02]} 20. f6+ {[%emt 0:00:01]} Kf8 {[%emt 0:00:36]} 21. fxg7+ {
[%emt 0:00:02]} Kxg7 {[%emt 0:00:01]} 22. Qh5 {[%emt 0:00:49]} Rhf8 {[%emt 0:
00:05]} 23. Rf5 {[%emt 0:00:23]} Qxe4 {[%emt 0:00:23]} 24. Rdf1 {[%emt 0:00:02]
} Rac8 {[%emt 0:00:20]} 25. Rxf7+ {[%emt 0:00:18]} Kh8 {[%emt 0:00:04]} 26. Qh6
{[%emt 0:00:28]} Rxf7 {[%emt 0:00:03]} 27. Rxf7 {[%emt 0:00:01]} Qg6 {[%emt 0:
00:03]} 28. Qxg6 {[%emt 0:00:01]} hxg6 {[%emt 0:00:01]} 29. Rxd7 {[%emt 0:00:
02]} a4 {[%emt 0:00:01]} 30. Nd2 {[%emt 0:00:01]} Ne3 {[%emt 0:00:03]} 31. c3 {
[%emt 0:00:05]} d5 {[%emt 0:00:01]} 32. Nf3 {[%emt 0:00:02]} Nc4 {[%emt 0:00:
04]} 33. Rxd5 {[%emt 0:00:02]} e4 {[%emt 0:00:02]} 34. Ne5 {[%emt 0:00:02]} Re8
{[%emt 0:00:02]} 35. Nxc4 {[%emt 0:00:03]} bxc4 {[%emt 0:00:01]} 36. Be3 {
[%emt 0:00:01]} 1-0

[Event "FIDE Women World Blitz 2021"]
[Site "Warsaw"]
[Date "2021.12.29"]
[Round "8.6"]
[White "Kosteniuk, Alexandra"]
[Black "Bulmaga, Irina"]
[Result "1-0"]
[ECO "B01"]
[WhiteElo "2518"]
[BlackElo "2405"]
[Annotator "ChessBase"]
[PlyCount "61"]
[EventDate "2021.12.29"]
[EventType "swiss"]
[EventCountry "POL"]
[Tiebreak "Cut1 Buchholz"]
[SourceTitle "playchess.com"]
[Source "ChessBase"]
[SourceQuality "1"]
[TimeControl "180+2"]

1. e4 {[%emt 0:00:01]} d5 {[%emt 0:00:02]} 2. exd5 {[%emt 0:00:01]} Qxd5 {
[%emt 0:00:01]} 3. Nc3 {[%emt 0:00:02]} Qd6 {[%emt 0:00:02]} 4. d4 {[%emt 0:00:
02]} Nf6 {[%emt 0:00:02]} 5. Nf3 {[%emt 0:00:02]} a6 {[%emt 0:00:02]} 6. g3 {
[%emt 0:00:11]} Bg4 {[%emt 0:00:02]} 7. Bg2 {[%emt 0:00:01]} Nc6 {[%emt 0:00:
02]} 8. Be3 {[%emt 0:00:10]} O-O-O {[%emt 0:00:09]} 9. h3 {[%emt 0:00:02]} Bh5
{[%emt 0:00:31]} 10. g4 {[%emt 0:00:50]} Bg6 {[%emt 0:00:02]} 11. Qd2 {[%emt 0:
00:05]} Nb4 {[%emt 0:00:41]} 12. Rc1 {[%emt 0:00:07]} Ne4 {[%emt 0:00:28]} 13.
Nxe4 {[%emt 0:00:05]} Bxe4 {[%emt 0:00:01]} 14. a3 {[%emt 0:00:18]} Nd5 {
[%emt 0:00:06]} 15. O-O {[%emt 0:00:19]} Bxf3 {[%emt 0:00:13]} 16. Bxf3 {
[%emt 0:00:01]} Nxe3 {[%emt 0:00:02]} 17. fxe3 {[%emt 0:00:05]} e5 {[%emt 0:00:
17]} 18. Qg2 {[%emt 0:00:02]} c6 {[%emt 0:00:06]} 19. Rcd1 {[%emt 0:00:09]} Be7
{[%emt 0:00:04]} 20. d5 {[%emt 0:00:11]} c5 {[%emt 0:00:06]} 21. c4 {[%emt 0:
00:03]} Bg5 {[%emt 0:00:04]} 22. Rd3 {[%emt 0:00:07]} Rhe8 {[%emt 0:00:13]} 23.
Be4 {[%emt 0:00:02]} Re7 {[%emt 0:00:13]} 24. Rb1 {[%emt 0:00:17]} Qh6 {
[%emt 0:00:13]} 25. Qf3 {[%emt 0:00:01]} Rd6 {[%emt 0:00:03]} 26. b4 {[%emt 0:
00:04]} Rf6 {[%emt 0:00:01]} 27. Bf5+ {[%emt 0:00:02]} Kd8 {[%emt 0:00:05]} 28.
bxc5 {[%emt 0:00:05]} g6 {[%emt 0:00:01]} 29. d6 {[%emt 0:00:00]} Rd7 {[%emt 0:
00:04]} 30. Rxb7 {[%emt 0:00:05]} gxf5 {[%emt 0:00:03]} 31. Rb8# {[%emt 0:00:
02]} 1-0

[Event "FIDE Women World Blitz 2021"]
[Site "Warsaw"]
[Date "2021.12.29"]
[Round "8.6"]
[White "Szczotka, Klara"]
[Black "Nur-Mukhametova, Alisa"]
[Result "0-1"]
[ECO "D85"]
[WhiteElo "1584"]
[BlackElo "2225"]
[Annotator "NA"]
[PlyCount "154"]
[EventDate "2021.12.29"]
[EventType "swiss"]
[EventCountry "POL"]
[Tiebreak "Cut1 Buchholz"]
[SourceTitle "playchess.com"]
[Source "ChessBase"]
[SourceQuality "1"]
[TimeControl "180+2"]

1. d4 {[%emt 0:00:01]} Nf6 {[%emt 0:00:02]} 2. c4 {[%emt 0:00:00]} g6 {[%emt 0:
00:01]} 3. Nc3 {[%emt 0:00:01]} d5 {[%emt 0:00:01]} 4. cxd5 {[%emt 0:00:03]}
Nxd5 {[%emt 0:00:02]} 5. e4 {[%emt 0:00:01]} Nxc3 {[%emt 0:00:02]} 6. bxc3 {
[%emt 0:00:00]} Bg7 {[%emt 0:00:02]} 7. Be3 {[%emt 0:00:04]} c5 {[%emt 0:00:01]
} 8. Bc4 {[%emt 0:00:15]} Qa5 {[%emt 0:00:16]} 9. Qd2 {[%emt 0:00:10]} O-O {
[%emt 0:00:33]} 10. Ne2 {[%emt 0:00:01]} Nc6 {[%emt 0:00:21]} 11. Rb1 {[%emt 0:
00:17]} cxd4 {[%emt 0:00:15]} 12. cxd4 {[%emt 0:00:03]} Qxd2+ {[%emt 0:00:03]}
13. Kxd2 {[%emt 0:00:01]} Rd8 {[%emt 0:00:05]} 14. d5 {[%emt 0:00:08]} Na5 {
[%emt 0:00:58]} 15. Bd3 {[%emt 0:00:20]} e6 {[%emt 0:00:01]} 16. Rb5 {[%emt 0:
00:02]} b6 {[%emt 0:00:17]} 17. Bd4 {[%emt 0:00:46]} Ba6 {[%emt 0:00:15]} 18.
Rb4 {[%emt 0:00:37]} Bxd3 {[%emt 0:00:03]} 19. Kxd3 {[%emt 0:00:01]} exd5 {
[%emt 0:00:06]} 20. Bxg7 {[%emt 0:00:08]} dxe4+ {[%emt 0:00:07]} 21. Kxe4 {
[%emt 0:00:02]} Kxg7 {[%emt 0:00:01]} 22. Rd4 {[%emt 0:00:12]} Re8+ {[%emt 0:
00:07]} 23. Kf3 {[%emt 0:00:02]} Nc6 {[%emt 0:00:01]} 24. Rd2 {[%emt 0:00:25]}
Ne5+ {[%emt 0:00:02]} 25. Kg3 {[%emt 0:00:01]} h5 {[%emt 0:00:04]} 26. h4 {
[%emt 0:00:00]} Rad8 {[%emt 0:00:03]} 27. Rhd1 {[%emt 0:00:02]} Rxd2 {[%emt 0:
00:01]} 28. Rxd2 {[%emt 0:00:00]} Re7 {[%emt 0:00:03]} 29. Nf4 {[%emt 0:00:03]}
Rd7 {[%emt 0:00:03]} 30. Re2 {[%emt 0:00:02]} Nc4 {[%emt 0:00:01]} 31. Re4 {
[%emt 0:00:02]} Na5 {[%emt 0:00:02]} 32. Re2 {[%emt 0:00:02]} Kf6 {[%emt 0:00:
02]} 33. Rc2 {[%emt 0:00:02]} Kg7 {[%emt 0:00:03]} 34. Ne2 {[%emt 0:00:03]} Rd6
{[%emt 0:00:02]} 35. Kf3 {[%emt 0:00:06]} Rc6 {[%emt 0:00:01]} 36. Rxc6 {
[%emt 0:00:03]} Nxc6 {[%emt 0:00:01]} 37. Ke4 {[%emt 0:00:01]} Kf6 {[%emt 0:00:
02]} 38. a3 {[%emt 0:00:01]} Ke6 {[%emt 0:00:02]} 39. Nf4+ {[%emt 0:00:00]} Kd6
{[%emt 0:00:01]} 40. Nd3 {[%emt 0:00:01]} a5 {[%emt 0:00:05]} 41. f3 {[%emt 0:
00:02]} b5 {[%emt 0:00:01]} 42. g4 {[%emt 0:00:01]} b4 {[%emt 0:00:03]} 43.
axb4 {[%emt 0:00:04]} Nxb4 {[%emt 0:00:00]} 44. Nb2 {[%emt 0:00:01]} Kc5 {
[%emt 0:00:04]} 45. gxh5 {[%emt 0:00:04]} gxh5 {[%emt 0:00:01]} 46. f4 {
[%emt 0:00:02]} Kb5 {[%emt 0:00:03]} 47. Kd4 {[%emt 0:00:00]} a4 {[%emt 0:00:
02]} 48. Nc4 {[%emt 0:00:04]} Nc2+ {[%emt 0:00:03]} 49. Kc3 {[%emt 0:00:02]}
Ne1 {[%emt 0:00:01]} 50. Nd2 {[%emt 0:00:05]} Ng2 {[%emt 0:00:02]} 51. Nf3 {
[%emt 0:00:06]} Nxf4 {[%emt 0:00:02]} 52. Ng5 {[%emt 0:00:01]} f6 {[%emt 0:00:
01]} 53. Ne4 {[%emt 0:00:01]} Nd5+ {[%emt 0:00:01]} 54. Kd4 {[%emt 0:00:04]}
Kc6 {[%emt 0:00:00]} 55. Nd2 {[%emt 0:00:02]} a3 {[%emt 0:00:02]} 56. Nb3 {
[%emt 0:00:01]} Kd6 {[%emt 0:00:02]} 57. Kc4 {[%emt 0:00:02]} Ke5 {[%emt 0:00:
02]} 58. Nd2 {[%emt 0:00:02]} Ne3+ {[%emt 0:00:04]} 59. Kb3 {[%emt 0:00:01]}
Ng2 {[%emt 0:00:02]} 60. Nf3+ {[%emt 0:00:01]} Kf4 {[%emt 0:00:02]} 61. Nd4 {
[%emt 0:00:01]} Nxh4 {[%emt 0:00:02]} 62. Kxa3 {[%emt 0:00:01]} Ke3 {[%emt 0:
00:03]} 63. Ne6 {[%emt 0:00:01]} Ng6 {[%emt 0:00:03]} 64. Kb3 {[%emt 0:00:01]}
f5 {[%emt 0:00:01]} 65. Kc2 {[%emt 0:00:01]} f4 {[%emt 0:00:02]} 66. Kd1 {
[%emt 0:00:01]} f3 {[%emt 0:00:01]} 67. Ke1 {[%emt 0:00:01]} Ne5 {[%emt 0:00:
03]} 68. Ng5 {[%emt 0:00:02]} Ng4 {[%emt 0:00:02]} 69. Nh3 {[%emt 0:00:11]} f2+
{[%emt 0:00:01]} 70. Nxf2 {[%emt 0:00:01]} Nxf2 {[%emt 0:00:02]} 71. Kf1 {
[%emt 0:00:01]} Kf3 {[%emt 0:00:02]} 72. Kg1 {[%emt 0:00:01]} Ne4 {[%emt 0:00:
03]} 73. Kh2 {[%emt 0:00:01]} Kg4 {[%emt 0:00:01]} 74. Kg2 {[%emt 0:00:01]} h4
{[%emt 0:00:01]} 75. Kh2 {[%emt 0:00:01]} h3 {[%emt 0:00:01]} 76. Kg1 {[%emt 0:
00:01]} Kg3 {[%emt 0:00:01]} 77. Kh1 {[%emt 0:00:01]} Nf2+ {[%emt 0:00:02]} 0-1

[Event "FIDE Women World Blitz 2021"]
[Site "Warsaw"]
[Date "2021.12.29"]
[Round "8.7"]
[White "Socko, Monika"]
[Black "Bodnaruk, Anastasia"]
[Result "1-0"]
[ECO "E92"]
[WhiteElo "2393"]
[BlackElo "2396"]
[Annotator "NA"]
[PlyCount "99"]
[EventDate "2021.12.29"]
[EventType "swiss"]
[EventCountry "POL"]
[Tiebreak "Cut1 Buchholz"]
[SourceTitle "playchess.com"]
[Source "ChessBase"]
[SourceQuality "1"]
[TimeControl "180+2"]

1. d4 {[%emt 0:00:01]} Nf6 {[%emt 0:00:00]} 2. c4 {[%emt 0:00:01]} g6 {[%emt 0:
00:01]} 3. Nc3 {[%emt 0:00:01]} Bg7 4. e4 {[%emt 0:00:02]} d6 {[%emt 0:00:01]}
5. Nf3 {[%emt 0:00:02]} O-O {[%emt 0:00:01]} 6. Be2 {[%emt 0:00:01]} e5 {
[%emt 0:00:01]} 7. Be3 {[%emt 0:00:02]} h6 {[%emt 0:00:02]} 8. dxe5 {[%emt 0:
00:33]} Ng4 {[%emt 0:00:26]} 9. exd6 {[%emt 0:00:18]} Nxe3 {[%emt 0:00:02]} 10.
fxe3 {[%emt 0:00:01]} cxd6 {[%emt 0:00:06]} 11. O-O {[%emt 0:00:02]} Nc6 {
[%emt 0:00:14]} 12. Qd2 {[%emt 0:00:02]} Bg4 {[%emt 0:00:19]} 13. Rad1 {
[%emt 0:00:06]} Bxf3 {[%emt 0:00:03]} 14. Bxf3 {[%emt 0:00:10]} Be5 {[%emt 0:
00:01]} 15. Nd5 {[%emt 0:00:09]} Kh7 {[%emt 0:00:22]} 16. b3 {[%emt 0:00:02]}
Qg5 {[%emt 0:00:04]} 17. Nf4 {[%emt 0:00:07]} Rad8 {[%emt 0:00:08]} 18. Be2 {
[%emt 0:00:07]} Qe7 {[%emt 0:00:14]} 19. Bd3 {[%emt 0:00:06]} Bg7 {[%emt 0:00:
13]} 20. Nd5 {[%emt 0:00:02]} Qe6 {[%emt 0:00:00]} 21. Qf2 {[%emt 0:00:06]} Ne5
{[%emt 0:00:01]} 22. Bc2 {[%emt 0:00:10]} Kh8 {[%emt 0:00:29]} 23. h3 {[%emt 0:
00:04]} a6 {[%emt 0:00:01]} 24. Rd2 {[%emt 0:00:02]} b5 {[%emt 0:00:04]} 25.
cxb5 {[%emt 0:00:12]} axb5 {[%emt 0:00:01]} 26. Rfd1 {[%emt 0:00:01]} Rc8 {
[%emt 0:00:08]} 27. Nf4 {[%emt 0:00:05]} Qe7 {[%emt 0:00:05]} 28. Rxd6 {
[%emt 0:00:05]} Qa7 {[%emt 0:00:09]} 29. Bb1 {[%emt 0:00:05]} Rc3 {[%emt 0:00:
07]} 30. Nd5 {[%emt 0:00:09]} Rc5 {[%emt 0:00:03]} 31. Nf6 {[%emt 0:00:06]} Rc7
{[%emt 0:00:18]} 32. Qg3 {[%emt 0:00:07]} Re7 {[%emt 0:00:04]} 33. Nd5 {
[%emt 0:00:07]} Ree8 {[%emt 0:00:03]} 34. Qf2 {[%emt 0:00:05]} Qc5 {[%emt 0:00:
03]} 35. Nf4 {[%emt 0:00:04]} Re7 {[%emt 0:00:05]} 36. R6d5 {[%emt 0:00:02]}
Qc7 {[%emt 0:00:02]} 37. Rxb5 {[%emt 0:00:04]} Qc6 {[%emt 0:00:07]} 38. Rbd5 {
[%emt 0:00:02]} Kh7 {[%emt 0:00:00]} 39. Qc2 {[%emt 0:00:06]} Qb6 {[%emt 0:00:
02]} 40. Qc5 {[%emt 0:00:02]} Qb7 {[%emt 0:00:04]} 41. Rd6 {[%emt 0:00:08]} Rc7
{[%emt 0:00:00]} 42. Qd5 {[%emt 0:00:03]} Qa7 43. Qd2 {[%emt 0:00:06]} Rfc8 {
[%emt 0:00:05]} 44. Nd5 {[%emt 0:00:03]} Rc5 {[%emt 0:00:04]} 45. Nf6+ {
[%emt 0:00:04]} Bxf6 {[%emt 0:00:04]} 46. Rxf6 {[%emt 0:00:01]} R5c7 {[%emt 0:
00:02]} 47. Rd6 {[%emt 0:00:01]} Rc3 {[%emt 0:00:02]} 48. Qd4 {[%emt 0:00:03]}
Qe7 {[%emt 0:00:01]} 49. Rd5 {[%emt 0:00:02]} Re8 {[%emt 0:00:03]} 50. Qxc3 {
[%emt 0:00:02]} 1-0